bitfinex/quotes_SOLUSD_20260220
["timestamp","ask_amount","ask_price","bid_price","bid_amount"]
[1771618104279,4.47176896,85.229,85.19,7.74852507]
[1771618104474,4.47176896,85.229,85.19,3.51553395]
[1771618104685,4.47176896,85.229,85.18,4.23299112]
[1771618104686,4.47176896,85.219,85.181,3.51553395]
[1771618104880,4.47176896,85.229,85.191,3.51553395]
[1771618105076,41.06149838,85.238,85.201,3.51553395]
[1771618105077,4.47176896,85.236,85.201,3.51553395]
[1771618105279,4.23299112,85.24,85.2,4.23299112]
[1771618105280,4.47176896,85.234,85.203,3.51553395]
[1771618106593,11.7325449,85.233,85.205,3.51553395]
[1771618108800,4.47176896,85.234,85.206,15.25179665]
[1771618109006,4.47176896,85.234,85.207,3.51553395]
[1771618110789,4.47176896,85.232,85.207,3.51553395]
[1771618110989,4.47176896,85.232,85.204,11.7364927]
[1771618111792,4.47176896,85.232,85.205,3.51553395]
[1771618112196,4.47176896,85.246,85.211,3.51553395]
[1771618113320,4.47176896,85.244,85.213,3.51553395]
[1771618115402,4.47176896,85.242,85.207,3.51553395]
[1771618115804,4.47176896,85.242,85.208,11.73598723]
[1771618116001,4.47176896,85.242,85.208,15.25152118]
[1771618117023,4.47176896,85.24,85.209,3.51553395]
[1771618119516,4.17427816,85.238,85.21,15.25124572]
[1771618119894,4.17427816,85.238,85.211,3.51553395]
[1771618122116,4.17427816,85.238,85.212,11.73543632]
[1771618122518,4.17427816,85.236,85.212,15.25097027]
[1771618124220,4.17427816,85.234,85.202,3.51553395]
[1771618126422,4.17427816,85.229,85.181,3.51553395]
[1771618126810,4.17427816,85.219,85.181,3.51553395]
[1771618127316,4.17427816,85.209,85.17,23.69598156]
[1771618127525,4.17427816,85.209,85.171,3.51553395]
[1771618128319,4.17427816,85.207,85.173,3.51553395]
[1771618128526,11.73530052,85.213,85.181,3.51553395]
[1771618128732,46.9263539,85.24,85.191,3.51553395]
[1771618128733,4.17427816,85.221,85.191,3.51553395]
[1771618128910,11.73433466,85.22,85.191,3.51553395]
[1771618131226,4.17427816,85.219,85.181,3.51553395]
[1771618132321,4.17427816,85.219,85.191,3.51553395]
[1771618132525,4.17427816,85.232,85.191,3.51553395]
[1771618132731,4.17427816,85.232,85.201,3.51553395]
[1771618133822,11.73282021,85.231,85.203,3.51553395]
[1771618134623,4.17427816,85.23,85.203,3.51553395]
[1771618136132,4.17427816,85.228,85.204,15.25207214]
[1771618136339,4.17427816,85.228,85.205,3.51553395]
[1771618136939,11.73309554,85.229,85.205,3.51553395]
[1771618137140,4.17427816,85.228,85.205,3.51553395]
[1771618137539,11.73260458,85.233,85.205,3.51553395]
[1771618137754,4.17427816,85.232,85.205,3.51553395]
[1771618138032,15.90688274,85.233,85.205,3.51553395]
[1771618138222,4.17427816,85.232,85.205,3.51553395]
[1771618138823,4.17427816,85.23,85.205,3.51553395]
[1771618139032,4.17427816,85.23,85.198,3.51553395]
[1771618139636,4.17427816,85.23,85.201,3.51553395]
[1771618140422,11.73215531,85.236,85.201,3.51553395]
[1771618141038,4.17427816,85.236,85.203,3.51553395]
[1771618142638,4.17427816,85.256,85.211,3.51553395]
[1771618142940,4.17427816,85.268,85.231,3.51553395]
[1771618143143,4.17427816,85.266,85.233,3.51553395]
[1771618143440,4.17427816,85.266,85.232,11.73268256]
[1771618145441,4.17427816,85.264,85.232,11.73268256]
[1771618146746,4.2742497,85.262,85.226,29.33349999]
[1771618146922,11.72841678,85.263,85.221,11.73419697]
[1771618146923,4.2742497,85.259,85.221,11.73419697]
[1771618147626,4.2742497,85.259,85.208,0.14216157]
[1771618147627,4.175864,85.249,85.2,7.7501807]
[1771618147821,4.175864,85.249,85.202,3.51553395]
[1771618148349,4.175864,85.259,85.221,3.51553395]
[1771618149054,4.175864,85.257,85.222,11.73405928]
[1771618149255,4.175864,85.257,85.223,3.51553395]
[1771618149633,4.175864,85.257,85.222,11.73405928]
[1771618152052,4.175864,85.255,85.217,11.73474776]
[1771618153441,4.175864,85.253,85.217,3.51553395]
[1771618155560,4.175864,85.253,85.221,3.51553395]
[1771618155776,4.175864,85.253,85.202,62.2]
[1771618156050,4.175864,85.253,85.14,26.17308487]
[1771618156051,4.175864,85.229,85.182,3.51553395]
[1771618156260,4.175864,85.229,85.191,3.51553395]
[1771618156435,4.175864,85.236,85.201,3.51553395]
[1771618156641,4.175864,85.249,85.211,3.51553395]
[1771618158033,4.175864,85.247,85.213,3.51553395]
[1771618160860,4.175864,85.245,85.214,11.73516088]
[1771618161237,4.175864,85.245,85.215,3.51553395]
[1771618165561,4.175864,85.243,85.215,3.51553395]
[1771618165746,4.175864,85.243,85.21,11.73569519]
[1771618166759,4.175864,85.243,85.211,3.51553395]
[1771618166961,4.175864,85.241,85.212,15.25097027]
[1771618168561,4.175864,85.241,85.212,11.73543632]
[1771618168760,4.175864,85.239,85.196,11.73756602]
[1771618169054,58.64433656,85.26,85.187,3.51553395]
[1771618169055,4.175864,85.228,85.187,3.51553395]
[1771618170076,4.175864,85.226,85.188,11.73874254]
[1771618170252,4.175864,85.219,85.183,11.73934314]
[1771618170456,4.175864,85.209,85.178,11.74000633]
[1771618170766,4.175864,85.209,85.176,11.74039635]
[1771618170991,4.175864,85.209,85.16,33.59085514]
[1771618170992,4.175864,85.209,85.172,11.74087538]
[1771618172671,4.175864,85.207,85.172,11.74087538]
[1771618173770,11.7362627,85.206,85.172,11.74087538]
[1771618173956,4.175864,85.205,85.172,11.74087538]
[1771618174152,4.175864,85.199,85.163,3.51553395]
[1771618175976,4.175864,85.197,85.164,11.74205063]
[1771618176172,4.175864,85.189,85.156,3.51553395]
[1771618176557,4.175864,85.189,85.156,15.25864454]
[1771618177572,11.73874254,85.188,85.157,3.51553395]
[1771618177876,4.40339558,85.187,85.157,3.51553395]
[1771618179278,4.40339558,85.187,85.16,11.73036697]
[1771618179482,4.40339558,85.187,85.151,11.74384329]
[1771618179662,4.40339558,85.185,85.151,15.25937724]
[1771618179976,4.23464675,85.18,85.145,3.51553395]
[1771618180178,4.40339558,85.169,85.131,3.51553395]
[1771618180756,4.40339558,85.169,85.132,0.14216157]
[1771618180954,4.40339558,85.169,85.133,3.51553395]
[1771618181375,4.40339558,85.179,85.141,3.51553395]
[1771618182070,4.40339558,85.177,85.143,3.51553395]
[1771618183979,4.40339558,85.177,85.142,11.88724625]
[1771618183980,4.40339558,85.177,85.151,3.51553395]
[1771618184277,11.74039635,85.176,85.151,3.51553395]
[1771618185079,4.40339558,85.178,85.151,15.25936458]
[1771618185280,4.40339558,85.178,85.152,3.51553395]
[1771618186261,11.74025852,85.177,85.152,3.51553395]
[1771618186471,16.1436541,85.177,85.152,3.51553395]
[1771618186663,4.40339558,85.176,85.152,3.51553395]
[1771618186868,4.40339558,85.176,85.143,11.7448438]
[1771618186869,4.40339558,85.176,85.144,3.51553395]
[1771618192363,4.40339558,85.174,85.145,11.74467085]
[1771618192563,4.40339558,85.174,85.145,15.2602048]
[1771618193687,4.40339558,85.174,85.137,11.74566501]
[1771618194269,4.40339558,85.174,85.137,15.26119896]
[1771618194571,4.40339558,85.172,85.138,3.51553395]
[1771618194965,4.40339558,85.172,85.141,3.65769552]
[1771618195681,4.40339558,85.172,85.143,3.51553395]
[1771618196385,4.40339558,85.172,85.145,3.51553395]
[1771618199092,4.40339558,85.178,85.151,3.51553395]
[1771618199280,16.1436541,85.177,85.151,3.51553395]
[1771618200396,58.67916428,85.21,85.161,3.51553395]
[1771618200397,4.40339558,85.209,85.161,3.51553395]
[1771618200564,4.40339558,85.209,85.163,3.51553395]
[1771618200970,4.40339558,85.209,85.172,3.51553395]
[1771618201171,157.9297266,85.62,85.2,4.24079705]
[1771618201172,4.40339558,85.227,85.2,4.24079705]
[1771618201372,4.40339558,85.227,85.191,3.65769552]
[1771618201581,4.40339558,85.227,85.18,4.24079705]
[1771618201789,4.40339558,85.219,85.174,0.42648471]
[1771618201979,4.40339558,85.209,85.172,0.14216157]
[1771618202184,4.40339558,85.209,85.16,7.756331]
[1771618202489,4.40339558,85.209,85.164,3.51553395]
[1771618203193,4.40339558,85.209,85.171,3.51553395]
[1771618203382,0.1,85.29,85.191,3.65769552]
[1771618203383,4.40339558,85.228,85.191,3.65769552]
[1771618204485,4.40339558,85.226,85.2,7.756331]
[1771618204680,11.73337088,85.227,85.201,3.51553395]
[1771618205407,4.40339558,85.226,85.201,3.51553395]
[1771618205884,4.40339558,85.226,85.193,3.65769552]
[1771618206481,4.40339558,85.218,85.181,0.14216157]
[1771618208202,4.40339558,85.218,85.181,3.65769552]
[1771618208882,4.23063726,85.224,85.193,3.51553395]
[1771618209583,3.73063726,85.224,85.191,0.14216157]
[1771618211606,4.24079705,85.23,85.16,4.24079705]
[1771618211607,4.23063726,85.222,85.18,4.24079705]
[1771618211782,4.23063726,85.219,85.173,4.01553395]
[1771618212996,4.24079705,85.21,85.173,4.01553395]
[1771618213190,4.23063726,85.209,85.173,4.01553395]
[1771618214095,4.23063726,85.207,85.173,4.01553395]
[1771618214889,4.23063726,85.207,85.166,11.74171905]
[1771618215097,4.23063726,85.207,85.161,0.14216157]
[1771618215398,4.23063726,85.207,85.163,4.01553395]
[1771618216588,4.23063726,85.205,85.164,11.74205063]
[1771618216793,4.23063726,85.189,85.152,0.14216157]
[1771618217197,4.23063726,85.189,85.152,4.15769552]
[1771618218602,11.73874254,85.188,85.141,11.74522263]
[1771618218802,4.23063726,85.187,85.144,0.28432314]
[1771618219008,4.23063726,85.187,85.148,4.15769552]
[1771618220204,4.23063726,85.187,85.151,4.15769552]
[1771618221286,58.68097797,85.207,85.151,4.15769552]
[1771618221287,4.23063726,85.202,85.171,4.01553395]
[1771618221899,4.23063726,85.202,85.173,4.01553395]
[1771618223695,11.73695144,85.201,85.175,4.01553395]
[1771618224410,11.73649702,85.205,85.175,4.01553395]
[1771618224609,11.73649702,85.205,85.181,4.01553395]
[1771618224904,29.336523,85.219,85.183,4.01553395]
[1771618224905,11.73553288,85.212,85.183,4.01553395]
[1771618225208,4.23063726,85.211,85.183,4.01553395]
[1771618225807,4.23063726,85.209,85.17,4.24079705]
[1771618226009,4.23063726,85.209,85.171,11.88324715]
[1771618227088,4.23063726,85.209,85.16,4.24079705]
[1771618227290,4.23063726,85.209,85.161,0.14216157]
[1771618227490,4.23063726,85.209,85.161,4.15769552]
[1771618227899,4.23063726,85.207,85.163,4.15769552]
[1771618228394,4.23063726,85.199,85.163,4.15769552]
[1771618230013,4.23063726,85.197,85.163,4.15769552]
[1771618230213,4.23063726,85.197,85.164,11.74205063]
[1771618232216,4.23063726,85.195,85.164,11.74205063]
[1771618234020,4.23063726,85.193,85.158,4.15769552]
[1771618235408,4.23063726,85.193,85.161,4.15769552]
[1771618236026,4.23063726,85.199,85.171,4.01553395]
[1771618236225,11.73736472,85.198,85.173,4.01553395]
[1771618237822,4.47221244,85.197,85.16,0.14216157]
[1771618238122,11.73764026,85.196,85.16,0.14216157]
[1771618238309,4.47221244,85.195,85.16,0.14216157]
[1771618239129,4.47221244,85.195,85.16,4.15769552]
[1771618240808,4.47221244,85.193,85.151,11.74384329]
[1771618241013,4.47221244,85.193,85.154,4.01553395]
[1771618243309,4.47221244,85.189,85.155,15.75882559]
[1771618243731,4.47221244,85.189,85.156,4.01553395]
[1771618246533,11.73819137,85.192,85.163,4.01553395]
[1771618246919,16.21040381,85.192,85.163,4.01553395]
[1771618247124,4.47221244,85.191,85.163,4.01553395]
[1771618249136,4.47221244,85.189,85.157,15.75854979]
[1771618251621,4.47221244,85.187,85.158,4.01553395]
[1771618253229,11.73874254,85.188,85.158,4.01553395]
[1771618253839,4.47221244,85.188,85.16,4.01553395]
[1771618254640,4.47221244,85.195,85.162,4.01553395]
[1771618255336,4.47221244,85.195,85.163,0.14216157]
[1771618255724,4.47221244,85.193,85.163,4.15769552]
[1771618258941,4.47221244,85.191,85.165,4.01553395]
[1771618260343,4.47221244,85.229,85.181,4.01553395]
[1771618260639,4.47221244,85.226,85.183,4.01553395]
[1771618262925,4.47221244,85.224,85.185,4.01553395]
[1771618266743,4.16603974,85.199,85.162,4.01553395]
[1771618266929,4.16603974,85.189,85.156,4.01553395]
[1771618269345,11.73722696,85.199,85.161,4.15769552]
[1771618269643,11.73722696,85.199,85.137,5.36086188]
[1771618269644,4.1921602,85.169,85.131,4.01553395]
[1771618270623,4.1921602,85.167,85.132,4.01553395]
[1771618273223,4.23909557,85.16,85.133,11.74632633]
[1771618273430,4.1921602,85.159,85.133,11.74632633]
[1771618274149,4.1921602,85.159,85.13,0.2]
[1771618274446,4.1921602,85.149,85.11,0.2]
[1771618274750,4.1921602,85.149,85.113,11.7490865]
[1771618275658,4.1921602,85.147,85.12,4.23909557]
[1771618276650,11.74453291,85.146,85.12,4.23909557]
[1771618276950,4.1921602,85.145,85.12,4.23909557]
[1771618277145,4.1921602,85.145,85.113,11.7490865]
[1771618278148,4.1921602,85.143,85.113,11.7490865]
[1771618279450,4.1921602,85.143,85.11,4.43909557]
[1771618279753,4.1921602,85.129,85.1,0.2]
[1771618280050,4.1921602,85.119,85.1,0.2]
[1771618280260,4.1921602,85.119,85.09,0.2]
[1771618280451,4.1921602,85.099,85.05,4.43909557]
[1771618280653,4.1921602,85.089,85.05,4.43909557]
[1771618280857,4.1921602,85.089,85.051,0.14216157]
[1771618281246,4.1921602,85.089,85.05,4.43909557]
[1771618281548,4.1921602,85.079,85.05,0.2]
[1771618281756,4.23909557,85.08,85.022,29.40404966]
[1771618281757,4.1921602,85.059,85.022,29.40404966]
[1771618282054,4.1921602,85.059,85.031,11.76041678]
[1771618283148,4.1921602,85.059,85.022,15.98462446]
[1771618283351,4.1921602,85.057,85.022,15.98462446]
[1771618283573,4.1921602,85.057,85.022,11.761656]
[1771618284155,4.1921602,85.055,85.022,11.761656]
[1771618285443,4.1921602,85.053,85.022,11.761656]
[1771618285839,4.1921602,85.076,85.041,4.22296846]
[1771618286054,4.1921602,85.076,85.051,4.22296846]
[1771618287351,4.1921602,85.087,85.06,4.23909557]
[1771618287553,4.1921602,85.087,85.062,4.22296846]
[1771618287742,11.75172279,85.094,85.071,4.22296846]
[1771618288150,4.1921602,85.093,85.071,4.22296846]
[1771618289763,4.1921602,85.091,85.062,4.22296846]
[1771618292062,4.1921602,85.091,85.07,8.46206403]
[1771618292362,11.7511287,85.099,85.07,8.46206403]
[1771618292666,4.1921602,85.108,85.081,4.22296846]
[1771618292840,4.1921602,85.127,85.081,4.22296846]
[1771618293040,4.1921602,85.119,85.081,4.22296846]
[1771618294164,4.23909557,85.12,85.04,113.47556131]
[1771618294165,4.1921602,85.117,85.071,4.22296846]
[1771618294973,4.1921602,85.109,85.067,11.75537674]
[1771618296243,4.1921602,85.107,85.067,11.75537674]
[1771618296647,4.1921602,85.099,85.064,4.22296846]
[1771618296848,4.1921602,85.099,85.06,4.23909557]
[1771618296849,4.1921602,85.099,85.061,11.75626903]
[1771618298949,4.3470381,85.097,85.07,4.23909557]
[1771618299156,4.3470381,85.097,85.062,4.28241437]
[1771618300279,4.3470381,85.095,85.07,4.23909557]
[1771618300577,4.3470381,85.095,85.063,16.03840698]
[1771618300772,4.3470381,85.095,85.064,4.28241437]
[1771618301276,4.3470381,85.095,85.07,4.23909557]
[1771618303076,4.3470381,85.093,85.066,4.28241437]
[1771618304575,4.3470381,85.093,85.065,11.75571621]
[1771618305871,4.3470381,85.089,85.051,4.28241437]
[1771618307669,4.3470381,85.087,85.053,4.28241437]
[1771618307867,4.3470381,85.087,85.06,4.23909557]
[1771618308068,4.3470381,85.087,85.06,8.52150994]
[1771618308269,4.3470381,85.087,85.06,4.23909557]
[1771618308578,4.3470381,85.087,85.061,4.28241437]
[1771618309270,16.09985289,85.086,85.061,4.28241437]
[1771618309579,4.3470381,85.086,85.063,4.28241437]
[1771618309781,4.3470381,85.094,85.063,4.28241437]
[1771618309957,4.3470381,85.115,85.081,4.28241437]
[1771618312976,4.3470381,85.113,85.083,4.28241437]
[1771618314370,11.74922455,85.112,85.083,4.28241437]
[1771618314578,4.3470381,85.111,85.083,4.28241437]
[1771618318278,4.3470381,85.109,85.08,4.24723237]
[1771618318479,4.3470381,85.109,85.077,4.28241437]
[1771618318659,4.3470381,85.109,85.074,11.75443588]
[1771618318863,4.3470381,85.109,85.075,4.28241437]
[1771618320881,4.3470381,85.109,85.061,29.39039222]
[1771618320882,4.3470381,85.099,85.046,4.28241437]
[1771618321070,4.3470381,85.079,85.047,4.28241437]
[1771618322084,4.3470381,85.079,85.051,4.28241437]
[1771618322465,4.3470381,85.079,85.05,4.24723237]
[1771618322665,4.3470381,85.079,85.047,4.28241437]
[1771618322877,4.3470381,85.079,85.05,8.52964674]
[1771618323281,4.3470381,85.077,85.051,4.28241437]
[1771618324192,4.3470381,85.077,85.051,16.04006566]
[1771618325178,4.3470381,85.087,85.054,4.28241437]
[1771618326094,4.3470381,85.069,85.033,4.28241437]
[1771618326383,4.3470381,85.069,85.041,4.28241437]
[1771618327487,4.13419082,85.067,85.041,4.28241437]
[1771618327675,4.13419082,85.067,85.035,4.14641588]
[1771618328896,4.13419082,85.059,85.023,4.14641588]
[1771618329877,4.13419082,85.057,85.022,11.76152509]
[1771618330280,4.13419082,85.057,85.022,15.90794097]
[1771618330486,4.13419082,85.057,85.023,4.14641588]
[1771618332377,4.13419082,85.062,85.031,4.14641588]
[1771618332583,4.13419082,85.069,85.031,4.14641588]
[1771618332879,4.13419082,85.069,85.041,4.14641588]
[1771618333186,4.13419082,85.077,85.041,4.14641588]
[1771618333589,4.24723237,85.08,85.041,4.14641588]
[1771618333787,11.75335755,85.083,85.051,4.14641588]
[1771618334288,4.13419082,85.082,85.051,4.14641588]
[1771618334702,11.75276946,85.087,85.061,4.14641588]
[1771618334883,4.13419082,85.086,85.061,4.14641588]
[1771618335275,4.13419082,85.086,85.053,4.14641588]
[1771618336881,4.13419082,85.086,85.055,4.14641588]
[1771618338501,4.13419082,85.085,85.057,4.14641588]
[1771618339280,15.88714374,85.085,85.057,4.14641588]
[1771618339684,11.75295292,85.085,85.057,4.14641588]
[1771618339976,4.13419082,85.084,85.057,4.14641588]
[1771618340904,4.13419082,85.082,85.057,4.14641588]
[1771618341403,4.13419082,85.082,85.058,11.75668367]
[1771618341586,4.13419082,85.082,85.058,15.90309955]
[1771618342710,4.13419082,85.08,85.047,4.14641588]
[1771618343095,11.75350548,85.081,85.051,4.14641588]
[1771618344308,4.13419082,85.08,85.051,4.14641588]
[1771618345001,15.88797259,85.079,85.052,4.14641588]
[1771618346311,4.13419082,85.079,85.054,4.14641588]
[1771618346611,4.13419082,85.085,85.054,4.14641588]
[1771618347688,4.13419082,85.083,85.054,4.14641588]
[1771618348623,4.13419082,85.083,85.056,4.14641588]
[1771618350786,4.13419082,85.083,85.058,4.14641588]
[1771618351592,4.13419082,85.081,85.058,4.14641588]
[1771618352315,4.13419082,85.081,85.053,15.90377031]
[1771618352518,4.13419082,85.081,85.054,4.14641588]
[1771618353729,4.13419082,85.081,85.055,11.75709834]
[1771618354029,4.13419082,85.081,85.056,4.14641588]
[1771618355103,4.13419082,85.091,85.056,4.14641588]
[1771618355309,4.13419082,85.098,85.071,4.14641588]
[1771618355829,4.13419082,85.098,85.07,4.24723237]
[1771618355830,4.13419082,85.098,85.08,4.24723237]
[1771618356224,4.13419082,85.098,85.08,8.39364825]
[1771618357223,4.13419082,85.098,85.08,4.14641588]
[1771618357910,4.13419082,85.098,85.081,11.75350548]
[1771618359614,4.13419082,85.098,85.08,4.14641588]
[1771618360120,4.13419082,85.098,85.08,15.90001619]
[1771618360315,4.13419082,85.098,85.08,4.14641588]
[1771618360526,4.30697595,85.096,85.072,4.28155679]
[1771618361910,4.30697595,85.096,85.073,11.75461074]
[1771618362113,4.30697595,85.109,85.081,4.28155679]
[1771618362418,4.30697595,85.108,85.081,4.28155679]
[1771618362618,4.30697595,85.108,85.073,11.75461074]
[1771618362818,4.30697595,85.108,85.073,16.03616753]
[1771618363215,4.30697595,85.108,85.074,4.28155679]
[1771618364934,4.30697595,85.106,85.076,4.28155679]
[1771618366834,4.30697595,85.106,85.081,4.28155679]
[1771618367019,4.30697595,85.104,85.081,4.28155679]
[1771618369435,4.30697595,85.102,85.071,4.28155679]
[1771618370741,4.30697595,85.102,85.07,4.24775291]
[1771618370742,4.30697595,85.102,85.074,4.28155679]
[1771618372142,4.30697595,85.102,85.08,4.24775291]
[1771618372322,4.30697595,85.102,85.081,4.28155679]
[1771618372720,4.30697595,85.102,85.081,16.03504231]
[1771618374136,4.30697595,85.1,85.077,11.75405259]
[1771618374320,4.30697595,85.1,85.078,4.28155679]
[1771618375526,4.30697595,85.1,85.079,11.75378177]
[1771618376130,4.30697595,85.098,85.071,4.28155679]
[1771618380044,4.30697595,85.098,85.073,4.28155679]
[1771618380248,4.30697595,85.107,85.073,4.28155679]
[1771618380940,4.30697595,85.107,85.081,4.28155679]
[1771618382745,11.74825832,85.119,85.091,4.28155679]
[1771618382945,29.36128764,85.147,85.111,4.28155679]
[1771618384047,11.74411913,85.149,85.111,4.28155679]
[1771618384750,4.24775291,85.15,85.113,4.28155679]
[1771618384751,4.30697595,85.146,85.113,4.28155679]
[1771618385429,4.30697595,85.146,85.106,11.74993177]
[1771618386247,4.30697595,85.146,85.106,16.03148856]
[1771618387546,4.18711747,85.144,85.107,3.99073341]
[1771618388141,4.18711747,85.139,85.107,3.99073341]
[1771618389740,4.18711747,85.139,85.101,11.75074323]
[1771618389741,4.18711747,85.138,85.111,3.99073341]
[1771618392435,4.18711747,85.145,85.121,3.99073341]
[1771618393457,4.18711747,85.154,85.121,3.99073341]
[1771618395057,4.24775291,85.16,85.123,3.99073341]
[1771618395058,4.18711747,85.152,85.123,3.99073341]
[1771618398353,4.18711747,85.149,85.11,4.24775291]
[1771618398554,4.18711747,85.149,85.111,3.99073341]
[1771618399568,4.18711747,85.147,85.114,3.99073341]
[1771618402564,4.18711747,85.159,85.14,4.24775291]
[1771618403154,4.18711747,85.159,85.14,8.23848632]
[1771618403757,4.18711747,85.159,85.141,3.99073341]
[1771618403952,4.18711747,85.186,85.151,3.99073341]
[1771618404160,0.1,85.19,85.171,3.99073341]
[1771618404668,0.1,85.19,85.173,3.99073341]
[1771618404871,0.1,85.19,85.18,4.24775291]
[1771618405170,0.1,85.19,85.177,3.99073341]
[1771618405871,0.1,85.19,85.18,4.24775291]
[1771618406077,0.1,85.2,85.181,3.99073341]
[1771618406451,4.18711747,85.199,85.181,3.99073341]
[1771618406870,4.18711747,85.199,85.182,11.73956939]
[1771618407673,0.1,85.2,85.183,3.99073341]
[1771618408453,0.1,85.2,85.19,4.24775291]
[1771618408670,4.18711747,85.218,85.193,3.99073341]
[1771618408861,4.18711747,85.218,85.2,4.24775291]
[1771618409054,4.18711747,85.218,85.198,3.99073341]
[1771618410282,4.18711747,85.218,85.2,4.24775291]
[1771618411280,0.1,85.22,85.201,3.99073341]
[1771618411979,4.28711747,85.22,85.201,3.99073341]
[1771618412172,4.28711747,85.22,85.167,5.36086188]
[1771618412173,4.28711747,85.22,85.184,11.73929376]
[1771618412379,4.18711747,85.219,85.185,3.99073341]
[1771618412761,4.18711747,85.219,85.157,5.36086188]
[1771618412762,4.18711747,85.219,85.178,3.99073341]
[1771618412961,4.18711747,85.219,85.17,4.24775291]
[1771618412962,4.18711747,85.219,85.18,3.99073341]
[1771618414078,4.18711747,85.217,85.18,3.99073341]
[1771618416063,4.24775291,85.2,85.171,3.99073341]
[1771618416263,4.18711747,85.199,85.171,3.99073341]
[1771618417159,4.07021177,85.197,85.171,3.99073341]
[1771618417758,4.07021177,85.205,85.181,4.04046237]
[1771618417963,4.07021177,85.214,85.191,4.04046237]
[1771618418582,4.07021177,85.214,85.172,41.23547861]
[1771618418583,4.07021177,85.214,85.181,4.04046237]
[1771618419365,0.1,85.24,85.202,4.04046237]
[1771618419576,0.1,85.24,85.23,4.24775291]
[1771618419761,0.1,85.24,85.231,4.04046237]
[1771618420582,0.1,85.24,85.221,4.04046237]
[1771618421469,0.1,85.24,85.222,15.77452165]
[1771618421872,4.07021177,85.274,85.231,4.04046237]
[1771618422089,4.07021177,85.269,85.231,4.04046237]
[1771618424370,4.07021177,85.267,85.231,4.04046237]
[1771618426972,4.07021177,85.289,85.261,4.04046237]
[1771618428499,0.1,85.29,85.271,4.04046237]
[1771618428679,0.1,85.29,85.281,4.04046237]
[1771618428877,0.1,85.29,85.282,11.7258038]
[1771618429994,0.1,85.29,85.281,4.04046237]
[1771618430198,0.1,85.29,85.277,11.72638329]
[1771618430507,0.1,85.29,85.271,11.72727425]
[1771618430508,4.17021177,85.29,85.271,11.72727425]
[1771618431491,4.17021177,85.29,85.261,11.72869189]
[1771618440178,4.2288417,85.28,85.253,11.72971393]
[1771618440390,4.07021177,85.279,85.24,4.2288417]
[1771618440593,4.07021177,85.269,85.241,11.73144378]
[1771618441489,4.07021177,85.267,85.231,41.06487075]
[1771618441695,4.07021177,85.267,85.232,4.04046237]
[1771618442779,4.07021177,85.289,85.26,4.2288417]
[1771618442984,4.07021177,85.289,85.261,4.04046237]
[1771618443295,0.1,85.29,85.27,4.2288417]
[1771618443694,0.1,85.29,85.271,11.72731643]
[1771618444089,0.1,85.29,85.272,4.04046237]
[1771618445502,4.07021177,85.289,85.271,11.72731643]
[1771618446106,4.07021177,85.289,85.263,29.32071769]
[1771618446505,4.07021177,85.289,85.263,33.36118006]
[1771618446997,4.07021177,85.289,85.264,4.19542556]
[1771618447196,4.07021177,85.289,85.27,4.2288417]
[1771618448902,4.07021177,85.289,85.265,11.72814167]
[1771618449313,3.94466831,85.288,85.265,11.72814167]
[1771618450292,3.94466831,85.288,85.259,4.25652602]
[1771618450293,3.94466831,85.279,85.245,4.25652602]
[1771618450485,3.94466831,85.279,85.251,4.25652602]
[1771618450704,3.94466831,85.286,85.251,4.25652602]
[1771618451303,3.94466831,85.284,85.251,4.25652602]
[1771618451511,11.8248413,85.29,85.261,4.25652602]
[1771618452613,3.94466831,85.289,85.261,4.25652602]
[1771618453709,11.72497889,85.288,85.262,11.72855433]
[1771618453892,3.94466831,85.287,85.262,11.72855433]
[1771618455190,3.94466831,85.287,85.258,15.98562926]
[1771618455406,3.94466831,85.287,85.259,4.25652602]
[1771618457212,3.94466831,85.285,85.253,4.25652602]
[1771618457799,3.94466831,85.279,85.251,11.73006768]
[1771618458210,3.94466831,85.279,85.251,15.9865937]
[1771618459510,3.94466831,85.277,85.251,15.9865937]
[1771618460097,3.94466831,85.277,85.252,4.25652602]
[1771618460900,3.94466831,85.277,85.241,4.25652602]
[1771618461099,3.94466831,85.269,85.241,15.9879698]
[1771618461718,3.94466831,85.267,85.241,15.9879698]
[1771618463799,3.94466831,85.265,85.241,15.9879698]
[1771618465318,4.2288417,85.27,85.242,4.25652602]
[1771618465518,11.72497889,85.288,85.251,4.25652602]
[1771618465704,3.94466831,85.287,85.251,4.25652602]
[1771618467209,3.94466831,85.279,85.251,4.25652602]
[1771618467417,4.2288417,85.28,85.245,4.25652602]
[1771618467418,3.94466831,85.277,85.245,4.25652602]
[1771618467814,3.94466831,85.269,85.24,11.73147496]
[1771618468632,3.94466831,85.269,85.24,15.98800098]
[1771618469633,0.1,85.29,85.261,4.25652602]
[1771618469811,11.72484142,85.289,85.261,4.25652602]
[1771618470209,0.1,85.29,85.261,4.25652602]
[1771618470411,11.82477484,85.29,85.261,4.25652602]
[1771618471306,16.05361654,85.29,85.261,4.25652602]
[1771618471506,11.82477484,85.29,85.262,11.72855433]
[1771618471811,11.82477484,85.29,85.263,4.25652602]
[1771618472417,0.1,85.29,85.263,4.25652602]